bitfinex/quotes_SOLUSD_20241103
["timestamp","ask_amount","ask_price","bid_price","bid_amount"]
[1730632446699,0.3062003,164.59,164.57,0.12549]
[1730632448394,0.3062003,164.59,164.55,23.776884]
[1730632448593,0.3062003,164.59,164.56,0.25098]
[1730632451617,0.3062003,164.59,164.57,23.776884]
[1730632457718,0.3062003,164.59,164.56,24.027864]
[1730632457893,0.3062003,164.59,164.57,1.9132059]
[1730632458093,0.3062003,164.59,164.56,24.027864]
[1730632458419,0.3062003,164.59,164.57,1.91290503]
[1730632458609,0.3062003,164.59,164.58,1.91290503]
[1730632459212,0.3062003,164.59,164.58,25.94076903]
[1730632460600,0.3062003,164.59,164.58,26.06625903]
[1730632461008,0.3062003,164.59,164.58,26.16625903]
[1730632461401,0.3062003,164.59,164.58,26.26724629]
[1730632461601,0.3062003,164.59,164.58,24.353354]
[1730632461800,0.3062003,164.59,164.58,26.26717707]
[1730632462701,0.3062003,164.59,164.58,26.26758551]
[1730632462904,0.3062003,164.59,164.58,1.91423151]
[1730632463599,0.3062003,164.59,164.58,2.03972151]
[1730632464921,0.3062003,164.59,164.58,26.06758551]
[1730632465319,0.3062003,164.59,164.58,24.153354]
[1730632465802,0.3062003,164.59,164.58,27.98252184]
[1730632467018,0.3062003,164.59,164.58,26.06796898]
[1730632471924,0.3062003,164.59,164.58,25.94247898]
[1730632474325,0.3062003,164.59,164.58,26.06796898]
[1730632476316,0.3062003,164.59,164.58,2.29283821]
[1730632476626,0.3062003,164.59,164.58,26.06972221]
[1730632477328,0.3062003,164.59,164.58,46.06972221]
[1730632479526,0.3062003,164.59,164.58,1.91639938]
[1730632480706,0.3062003,164.59,164.58,2.16737938]
[1730632481416,0.3062003,164.59,164.58,1.91639938]
[1730632481613,0.3062003,164.59,164.58,2.04188938]
[1730632482915,0.3062003,164.59,164.58,25.94426338]
[1730632483116,0.3062003,164.59,164.58,45.94428888]
[1730632483614,0.3062003,164.59,164.58,1.91642488]
[1730632486529,0.3062003,164.59,164.56,6.33511762]
[1730632490135,0.3062003,164.59,164.57,1.91670873]
[1730632490321,0.3062003,164.59,164.58,1.91670873]
[1730632492733,0.3062003,164.59,164.58,1.91770258]
[1730632494232,0.3062003,164.59,164.58,25.94556658]
[1730632496945,0.3062003,164.59,164.58,25.82007658]
[1730632497136,0.3062003,164.59,164.58,25.69458658]
[1730632499728,0.3062003,164.59,164.58,25.69463009]
[1730632505738,0.3062003,164.59,164.58,25.69719094]
[1730632507257,0.3062003,164.59,164.58,1.92030694]
[1730632509240,0.3062003,164.59,164.58,1.92103779]
[1730632509443,0.3062003,164.59,164.56,6.34383267]
[1730632509636,0.3062003,164.59,164.58,1.92099256]
[1730632511667,0.3062003,164.59,164.58,1.92021842]
[1730632512254,0.3062003,164.59,164.56,6.34383267]
[1730632512459,0.3062003,164.59,164.57,1.91908832]
[1730632512669,0.3062003,164.59,164.58,1.91885959]
[1730632513548,0.3062003,164.59,164.56,6.33411798]
[1730632513769,0.3062003,164.59,164.57,1.91879884]
[1730632513940,0.3062003,164.59,164.56,6.33411798]
[1730632514145,0.3062003,164.59,164.57,1.91877954]
[1730632514344,0.3062003,164.59,164.56,6.33411798]
[1730632514563,0.3062003,164.59,164.57,1.91851201]
[1730632514762,0.3062003,164.59,164.56,6.33411798]
[1730632515046,0.3062003,164.59,164.57,1.91857773]
[1730632515348,0.3062003,164.59,164.56,6.33411798]
[1730632515547,0.3062003,164.59,164.57,1.91804704]
[1730632515852,0.3062003,164.59,164.56,6.33411798]
[1730632516156,0.3062003,164.59,164.57,1.91783344]
[1730632516353,0.3062003,164.59,164.56,6.33411798]
[1730632516561,15.3760003,164.59,164.56,6.33411798]
[1730632516863,15.3760003,164.59,164.47,0.91143063]
[1730632517071,15.3760003,164.59,164.52,6.33899015]
[1730632517266,15.3760003,164.59,164.53,1.91840821]
[1730632517467,15.3760003,164.59,164.52,6.33899993]
[1730632517676,15.3760003,164.59,164.53,1.91713059]
[1730632517870,15.3760003,164.59,164.52,6.33899993]
[1730632518053,15.3760003,164.59,164.53,1.91688477]
[1730632518252,15.3760003,164.59,164.52,6.33899993]
[1730632518567,15.3760003,164.59,164.53,1.91606657]
[1730632518771,15.3760003,164.59,164.52,6.33899993]
[1730632519166,0.47647,164.53,164.52,6.33899993]
[1730632519485,6.1689,164.52,164.47,0.91143063]
[1730632520952,6.00828078,164.52,164.47,0.91143063]
[1730632521152,15.0698,164.53,164.47,0.91143063]
[1730632524292,6.1689,164.56,164.47,0.91143063]
[1730632526583,6.1689,164.56,164.48,23.776884]
[1730632528869,15.0698,164.57,164.48,23.776884]
[1730632537076,15.0698,164.57,164.49,0.12549]
[1730632537292,15.0698,164.57,164.49,0.25098]
[1730632542997,15.0698,164.57,164.5,23.776884]
[1730632549925,0.3062003,164.59,164.5,23.776884]
[1730632550424,0.3062003,164.59,164.51,1.90671415]
[1730632552025,0.3062003,164.59,164.48,6.31410834]
[1730632552235,0.3062003,164.59,164.49,25.68462309]
[1730632552403,0.3062003,164.59,164.5,1.90773909]
[1730632552811,0.3062003,164.59,164.49,23.776884]
[1730632553006,0.25098,164.58,164.48,6.31410834]
[1730632553224,15.3534,164.57,164.49,1.90883968]
[1730632553711,15.3534,164.57,164.48,8.22294802]
[1730632553917,0.25098,164.56,164.48,8.22294802]
[1730632554100,0.25098,164.56,164.48,6.31410834]
[1730632554399,0.25098,164.56,164.48,8.22443863]
[1730632555022,0.25098,164.56,164.48,6.31410834]
[1730632555412,6.3648,164.55,164.48,6.31410834]
[1730632557125,6.3648,164.55,164.48,8.22443863]
[1730632557314,0.47647,164.54,164.49,1.91033029]
[1730632557508,0.47647,164.54,164.48,6.31410834]
[1730632557711,0.47647,164.54,164.48,8.22558708]
[1730632557917,0.47647,164.54,164.48,6.31410834]
[1730632560120,6.3648,164.55,164.48,6.31410834]
[1730632561241,6.3648,164.55,164.49,1.91221361]
[1730632561739,6.3648,164.55,164.47,0.91143063]
[1730632561924,6.3648,164.55,164.48,8.22855149]
[1730632562127,6.3648,164.55,164.48,6.31624249]
[1730632562320,6.3648,164.55,164.49,1.9127803]
[1730632565352,0.25098,164.54,164.49,1.9127803]
[1730632565950,0.25098,164.54,164.48,8.22892348]
[1730632566134,0.25098,164.54,164.48,6.31624249]
[1730632566532,16.6328,164.53,164.48,6.31624249]
[1730632566737,16.6328,164.53,164.48,8.22906116]
[1730632567053,16.6328,164.53,164.48,8.22911792]
[1730632567457,16.6328,164.53,164.48,6.31624249]
[1730632568139,6.3648,164.55,164.48,6.31624249]
[1730632569133,6.3648,164.55,164.48,8.22903549]
[1730632569334,6.3648,164.55,164.48,6.31624249]
[1730632570034,6.3648,164.55,164.48,8.22903549]
[1730632570237,0.47647,164.54,164.48,6.31624249]
[1730632571442,0.25098,164.54,164.48,6.31624249]
[1730632571951,0.25098,164.54,164.48,8.22843143]
[1730632572150,6.3648,164.55,164.48,6.31624249]
[1730632572362,16.6328,164.57,164.48,6.31624249]
[1730632572533,16.6328,164.57,164.49,1.9109007]
[1730632572742,16.6328,164.57,164.48,6.31624249]
[1730632572743,16.6328,164.57,164.5,1.9109007]
[1730632572947,16.6328,164.57,164.47,23.776884]
[1730632573252,16.6328,164.57,164.49,6.31493504]
[1730632573441,16.6328,164.57,164.49,8.2253258]
[1730632573637,16.6328,164.57,164.49,6.31493504]
[1730632573842,16.6328,164.57,164.49,8.2253258]
[1730632574057,16.6328,164.57,164.49,6.31493504]
[1730632574245,16.6328,164.57,164.49,8.2253258]
[1730632574447,16.6328,164.57,164.49,6.31493504]
[1730632574759,16.6328,164.57,164.49,8.22571629]
[1730632574960,16.6328,164.57,164.49,6.31493504]
[1730632575262,16.6328,164.57,164.49,8.22571629]
[1730632575556,16.6328,164.57,164.49,6.31493504]
[1730632576641,16.6328,164.57,164.5,1.9101943]
[1730632576840,16.6328,164.57,164.49,6.31493504]
[1730632577057,16.6328,164.57,164.5,1.91025235]
[1730632577447,16.6328,164.57,164.49,6.31493504]
[1730632577756,0.3062003,164.59,164.5,21.91006497]
[1730632577963,0.3062003,164.59,164.51,1.91006497]
[1730632578134,0.3062003,164.59,164.52,1.91006497]
[1730632578460,0.3062003,164.59,164.51,25.68601296]
[1730632578666,0.3062003,164.59,164.52,1.90912896]
[1730632578838,0.3062003,164.59,164.51,23.776884]
[1730632579038,0.3062003,164.59,164.52,1.90925063]
[1730632579260,0.3062003,164.59,164.52,1.90897431]
[1730632579451,0.3062003,164.59,164.51,23.776884]
[1730632579800,0.3062003,164.59,164.53,23.776884]
[1730632580056,0.3062003,164.59,164.54,1.9082946]
[1730632580959,0.3062003,164.59,164.53,23.776884]
[1730632581540,0.3062003,164.59,164.54,1.90688316]
[1730632582363,0.3062003,164.59,164.53,23.776884]
[1730632585063,0.3062003,164.59,164.52,43.776884]
[1730632585246,0.3062003,164.59,164.53,1.90608075]
[1730632585747,0.3062003,164.59,164.52,43.776884]
[1730632587068,0.3062003,164.59,164.53,1.90596191]
[1730632587962,0.25098,164.58,164.51,6.31568475]
[1730632591371,0.3062003,164.59,164.51,6.31568475]
[1730632591578,0.3062003,164.59,164.51,8.22164666]
[1730632591746,0.3062003,164.59,164.53,20.0]
[1730632595683,0.37647,164.58,164.52,6.30787423]
[1730632595859,16.1332003,164.59,164.52,6.30787423]
[1730632607082,0.37647,164.58,164.52,6.30787423]
[1730632607287,48.710254,164.58,164.52,6.30787423]
[1730632607584,0.25098,164.56,164.46,1.90629194]
[1730632608081,0.25098,164.56,164.47,1.90629194]
[1730632608289,0.25098,164.56,164.46,1.90629194]
[1730632608469,0.25098,164.56,164.45,15.9507]
[1730632608470,0.25098,164.56,164.47,8.2136596]
[1730632608668,0.25098,164.56,164.48,1.90629194]
[1730632608872,6.2069,164.58,164.48,1.90629194]
[1730632609063,0.25098,164.58,164.49,1.90629194]
[1730632609267,0.25098,164.58,164.5,1.90629194]
[1730632609485,0.25098,164.58,164.49,1.90570316]
[1730632609981,0.25098,164.58,164.5,1.90570316]
[1730632610178,0.25098,164.58,164.49,1.90570316]
[1730632610487,0.25098,164.58,164.48,20.0]
[1730632610980,0.25098,164.58,164.49,1.90601775]
[1730632613673,0.25098,164.58,164.5,1.90601775]
[1730632613866,0.25098,164.58,164.49,1.90601775]
[1730632614070,0.25098,164.58,164.5,1.90601775]
[1730632614270,0.25098,164.58,164.49,1.90601775]
[1730632614587,0.3062003,164.59,164.51,39.727584]
[1730632614892,0.3062003,164.59,164.52,1.90601775]
[1730632616470,0.3062003,164.59,164.51,39.727584]
[1730632616676,0.3062003,164.59,164.52,1.90835373]
[1730632616876,0.3062003,164.59,164.52,1.90829732]
[1730632618385,0.3062003,164.59,164.51,15.9507]
[1730632618691,0.3062003,164.59,164.52,1.90924668]
[1730632618884,0.3062003,164.59,164.51,15.9507]
[1730632619095,0.3062003,164.59,164.52,1.90928173]
[1730632619288,0.3062003,164.59,164.51,15.9507]
[1730632619485,0.3062003,164.59,164.52,1.90948262]
[1730632619692,0.3062003,164.59,164.51,15.9507]
[1730632620093,0.3062003,164.59,164.52,1.90948262]
[1730632620390,0.3062003,164.59,164.51,15.9507]
[1730632620594,0.3062003,164.59,164.52,1.90963897]
[1730632620792,0.3062003,164.59,164.51,20.0]
[1730632620973,0.3062003,164.59,164.52,1.90958]
[1730632621176,0.3062003,164.59,164.52,23.776884]
[1730632621380,0.3062003,164.59,164.53,1.90953417]
[1730632621575,0.3062003,164.59,164.52,23.776884]
[1730632621881,0.3062003,164.59,164.53,1.90972485]
[1730632622076,0.3062003,164.59,164.52,23.776884]
[1730632622279,0.3062003,164.59,164.53,1.9097231]
[1730632622597,0.3062003,164.59,164.52,23.776884]
[1730632622795,0.3062003,164.59,164.53,1.91011615]
[1730632623097,0.3062003,164.59,164.52,23.776884]
[1730632623399,0.3062003,164.59,164.53,1.91011307]
[1730632623575,0.3062003,164.59,164.52,23.776884]
[1730632623775,0.3062003,164.59,164.53,21.91020568]
[1730632623998,0.3062003,164.59,164.54,39.225884]
[1730632624314,0.3062003,164.59,164.55,0.25098]
[1730632625085,0.3062003,164.59,164.54,39.225884]
[1730632626179,0.3062003,164.59,164.58,59.602354]
[1730632626384,1e-08,164.59,164.58,61.51153328]
[1730632626688,0.3062003,164.67,164.59,44.153354]
[1730632627097,0.3062003,164.67,164.61,24.153354]
[1730632627399,0.3062003,164.67,164.62,20.0]
[1730632630218,0.3062003,164.67,164.63,23.776884]
[1730632630888,0.3062003,164.67,164.64,20.0]
[1730632631497,0.3062003,164.67,164.65,23.776884]
[1730632631696,0.3062003,164.67,164.65,53.776884]
[1730632633191,0.3062003,164.67,164.66,20.37647]
[1730632633509,0.3062003,164.67,164.66,80.457954]
[1730632636286,0.3062003,164.67,164.66,80.557954]
[1730632638905,0.3062003,164.67,164.66,80.657954]
[1730632639798,0.3062003,164.67,164.66,50.657954]
[1730632640800,0.3062003,164.67,164.66,50.457954]
[1730632641004,0.3062003,164.67,164.66,6.3046]
[1730632641183,0.3062003,164.67,164.66,6.63009]
[1730632642205,0.3062003,164.67,164.66,30.657954]
[1730632642502,0.3062003,164.67,164.66,50.457954]
[1730632642707,0.3062003,164.67,164.66,6.3046]
[1730632643082,0.3062003,164.67,164.66,6.43009]
[1730632643286,0.3062003,164.67,164.66,14.3434258]
[1730632643983,0.3062003,164.67,164.66,58.3712898]
[1730632644189,0.3062003,164.67,164.66,58.5712898]
[1730632646094,0.3062003,164.67,164.66,50.657954]
[1730632647894,0.3062003,164.67,164.66,50.557954]
[1730632648095,0.3062003,164.67,164.66,50.657954]
[1730632648803,0.3062003,164.67,164.66,50.557954]
[1730632649193,0.3062003,164.67,164.66,50.657954]
[1730632649904,0.3062003,164.75,164.66,50.657954]
[1730632649905,0.3062003,164.75,164.71,0.1]
[1730632650087,0.3062003,164.75,164.71,0.22549]
[1730632650288,0.3062003,164.75,164.74,20.37647]
[1730632650488,0.3062003,164.75,164.74,43.902374]
[1730632651210,0.3062003,164.75,164.74,44.153354]
[1730632670630,0.3062003,164.75,164.74,46.04138898]
[1730632671302,0.3062003,164.75,164.74,49.06444971]
[1730632673222,0.3062003,164.75,164.74,25.28756571]
[1730632673405,0.3062003,164.75,164.74,2.26450498]
[1730632673718,0.3062003,164.75,164.74,1.88803498]
[1730632674112,0.3062003,164.75,164.74,1.89048605]
[1730632674323,0.3062003,164.75,164.71,4.91350329]
[1730632674505,0.3062003,164.75,164.72,2.01593256]
[1730632674828,0.3062003,164.75,164.73,1.89044256]
[1730632675002,0.3062003,164.75,164.68,3.02306073]
[1730632675196,0.3062003,164.75,164.71,0.12549]
[1730632676014,0.3062003,164.75,164.7,3.15372232]
[1730632676215,0.3062003,164.75,164.71,1.89248348]
[1730632676408,0.3062003,164.75,164.72,1.89248348]
[1730632676605,0.3062003,164.75,164.73,1.89351169]
[1730632676804,0.3062003,164.75,164.74,24.027864]
[1730632677125,0.3062003,164.75,164.74,25.92108954]
[1730632677422,0.3062003,164.75,164.74,25.92200396]
[1730632678910,0.3062003,164.75,164.74,24.027864]
[1730632679102,0.3062003,164.75,164.74,25.92300928]
[1730632680411,0.3062003,164.75,164.74,28.95565811]
[1730632681521,0.3062003,164.75,164.74,28.9629068]
[1730632681821,0.3062003,164.75,164.74,29.0883968]
[1730632682027,0.3062003,164.75,164.74,49.0883968]
[1730632684633,0.3062003,164.75,164.74,49.1883968]
[1730632684935,0.3062003,164.75,164.74,44.253354]
[1730632685107,0.3062003,164.75,164.74,49.18652221]
[1730632688815,16.8766003,164.83,164.76,0.12549]
[1730632689014,16.8766003,164.83,164.78,0.37647]
[1730632689213,16.8766003,164.83,164.79,1.88632742]
[1730632689435,16.8766003,164.83,164.8,0.12549]
[1730632689724,16.8766003,164.83,164.8,24.027864]
[1730632691232,0.3062003,164.83,164.82,0.12549]
[1730632691411,10.6535003,164.87,164.82,0.12549]
[1730632696520,15.3473,164.91,164.83,0.37647]
[1730632703232,15.3473,164.91,164.83,0.25098]
[1730632704438,0.1,164.88,164.78,6.29404665]
[1730632704819,0.1,164.88,164.79,0.12549]
[1730632705737,21.4461,164.89,164.79,24.153354]
[1730632716245,0.1,164.88,164.79,24.027864]
[1730632716539,0.1,164.88,164.78,6.29226136]
[1730632716749,0.1,164.88,164.79,0.12549]
[1730632717552,21.5461,164.89,164.79,0.12549]
[1730632717846,0.1,164.88,164.79,24.027864]
[1730632718053,21.5461,164.89,164.79,24.027864]
[1730632718238,21.4461,164.89,164.8,0.12549]
[1730632720639,6.1127,164.89,164.8,0.25098]
[1730632721840,6.0127,164.89,164.8,0.25098]
[1730632722031,6.1127,164.89,164.8,0.25098]
[1730632722956,6.0127,164.89,164.8,0.25098]
[1730632724340,6.0127,164.89,164.81,1.87808881]
[1730632724659,6.0127,164.89,164.8,0.25098]
[1730632724950,6.0127,164.89,164.81,1.8780459]
[1730632725151,6.0127,164.89,164.8,0.25098]
[1730632725350,6.0127,164.89,164.81,1.87803184]
[1730632725539,6.0127,164.89,164.8,3.25737892]
[1730632725742,6.0127,164.89,164.81,1.87871745]
[1730632726042,6.0127,164.89,164.8,3.25737892]
[1730632726348,6.0127,164.89,164.81,1.8787903]
[1730632726550,6.0127,164.89,164.8,3.25737892]
[1730632726732,6.0127,164.89,164.81,1.87879501]
[1730632727045,6.0127,164.89,164.82,1.87864338]
[1730632727244,6.0127,164.89,164.8,0.25098]
[1730632727432,6.0127,164.89,164.81,1.87871339]
[1730632727633,6.0127,164.89,164.82,1.87871339]
[1730632727849,6.0127,164.89,164.8,0.25098]
[1730632728038,6.0127,164.89,164.81,1.87926296]
[1730632728242,6.0127,164.89,164.82,1.87926296]
[1730632728454,6.0127,164.89,164.8,0.25098]
[1730632728633,6.0127,164.89,164.81,1.87956075]
[1730632728833,6.0127,164.89,164.82,1.87956075]
[1730632729049,6.0127,164.89,164.8,0.25098]
[1730632729256,6.0127,164.89,164.81,1.87957774]
[1730632729453,6.0127,164.89,164.82,1.87957774]
[1730632729758,6.0127,164.89,164.81,3.00813985]
[1730632730055,6.0127,164.89,164.82,1.87984293]
[1730632730255,6.0127,164.89,164.8,0.25098]
[1730632730443,6.0127,164.89,164.81,1.88018767]
[1730632730760,6.0127,164.89,164.82,1.88018767]
[1730632732364,6.0127,164.89,164.8,6.54217763]
[1730632736456,6.1127,164.89,164.8,6.54217763]
[1730632737466,6.0127,164.89,164.8,6.54217763]
[1730632737852,6.1127,164.89,164.8,6.54217763]
[1730632739360,6.1127,164.89,164.81,4.89463149]
[1730632739558,6.1127,164.89,164.81,1.88238869]
[1730632741172,6.0127,164.89,164.81,1.88238869]
[1730632741343,6.0127,164.89,164.82,4.8946966]
[1730632741547,6.1127,164.89,164.82,1.88238869]
[1730632741853,6.1127,164.89,164.83,1.88238869]
[1730632742053,6.1127,164.89,164.81,3.01250867]
[1730632742252,6.1127,164.89,164.82,1.88255354]
[1730632742565,6.1127,164.89,164.8,0.25098]
[1730632742566,0.1,164.85,164.83,1.88260512]
[1730632742872,0.1,164.84,164.72,21.686]
[1730632743061,0.1,164.84,164.73,5.01852483]
[1730632743247,0.1,164.84,164.76,6.29573844]
[1730632743458,0.1,164.84,164.77,4.89303483]
[1730632743764,0.1,164.84,164.78,1.88184244]
[1730632743958,0.1,164.84,164.76,6.29399218]
[1730632743959,15.9193,164.81,164.76,6.29399218]
[1730632744162,16.0193,164.81,164.77,4.89265584]
[1730632744368,16.0193,164.81,164.76,6.29399218]
[1730632744369,16.0193,164.81,164.78,1.88162289]
[1730632744567,16.0193,164.81,164.76,6.29399218]
[1730632744759,16.0193,164.81,164.77,1.88047073]
[1730632745072,0.1,164.8,164.7,23.902374]
[1730632745264,15.9193,164.81,164.71,4.89017724]
[1730632745465,0.1,164.8,164.73,6.29504987]
[1730632745667,0.1,164.8,164.74,4.89017724]
[1730632745874,38.37549,164.8,164.75,4.89017724]
[1730632746077,0.1,164.79,164.76,1.87962882]
[1730632746265,0.1,164.78,164.76,1.87962882]
[1730632746461,0.1,164.78,164.73,6.29504987]
[1730632746675,0.1,164.78,164.74,1.87886746]
[1730632746872,0.1,164.78,164.73,6.29504987]
[1730632748769,20.0,164.8,164.73,6.29504987]
[1730632750063,0.1,164.79,164.73,6.29504987]
[1730632750256,20.0,164.8,164.73,6.29504987]
[1730632750779,15.9193,164.81,164.73,6.29504987]
[1730632750977,0.11444683,164.74,164.73,6.29504987]
[1730632753463,0.11444683,164.74,164.73,30.44840387]
[1730632753662,0.11444683,164.74,164.73,32.32433869]
[1730632756161,0.11444683,164.74,164.73,32.32367439]
[1730632758067,0.11444683,164.74,164.73,32.19818439]
[1730632759682,0.11444683,164.74,164.73,32.1993431]
[1730632766686,0.11444683,164.74,164.73,32.20009232]
[1730632770270,0.22549,164.84,164.73,32.20009232]
[1730632770493,0.1,164.83,164.74,1.8772856]
[1730632771190,0.11788249,164.75,164.74,1.8772856]
[1730632771599,0.11788249,164.75,164.74,1.87733559]
[1730632773771,0.11788249,164.75,164.74,1.8775764]
[1730632777199,0.11788249,164.75,164.73,30.32239897]
[1730632777381,0.11788249,164.75,164.74,1.87854128]
[1730632778091,0.11788249,164.75,164.74,25.90640528]
[1730632778279,0.11788249,164.75,164.74,26.03189528]
[1730632780097,0.11788249,164.75,164.74,67.83229528]
[1730632780702,0.11788249,164.75,164.74,65.953754]
[1730632780892,0.11788249,164.75,164.74,67.83161827]
[1730632781098,0.11788249,164.75,164.74,65.953754]
[1730632781802,0.11788249,164.75,164.74,67.83156838]
[1730632782506,0.11788249,164.75,164.74,26.03116838]
[1730632784901,0.11788249,164.75,164.74,1.87781438]
[1730632790092,16.2172,164.8,164.74,1.87781438]
[1730632790296,16.2172,164.8,164.75,1.87781438]
[1730632790595,16.2172,164.8,164.76,1.87781438]
[1730632790909,16.2172,164.8,164.74,6.29165822]
[1730632791091,0.11399504,164.77,164.75,1.88061099]
[1730632791293,0.11399504,164.77,164.76,1.88061099]
[1730632791492,0.11399504,164.77,164.76,1.88061421]
[1730632792290,0.11399504,164.77,164.74,6.29165822]
[1730632792489,0.11399504,164.77,164.75,1.88073063]
[1730632792690,0.11399504,164.77,164.76,1.88073063]
[1730632796996,0.11399504,164.77,164.76,26.03408463]
[1730632798791,0.11399504,164.77,164.76,0.37647]
[1730632798996,0.11399504,164.77,164.76,26.03478358]
[1730632801421,0.11399504,164.77,164.76,0.37647]
[1730632801621,0.11399504,164.77,164.76,26.03436045]
[1730632802131,0.11399504,164.77,164.76,2.25733917]
[1730632802427,0.11399504,164.77,164.76,26.03422317]
[1730632805133,0.11399504,164.77,164.76,26.03408879]
[1730632806814,0.11399504,164.77,164.76,1.88073479]
[1730632808228,0.11399504,164.77,164.75,1.88073479]
[1730632808537,0.11399504,164.77,164.76,1.88187115]
[1730632808720,0.11399504,164.77,164.76,1.88189021]
[1730632810117,16.6606,164.78,164.76,1.88189021]
[1730632810320,16.6606,164.78,164.74,6.2912131]
[1730632810535,16.6606,164.78,164.75,1.8818076]
[1730632810702,16.6606,164.78,164.76,1.8818076]
[1730632810906,16.6606,164.78,164.74,6.2912131]
[1730632811115,0.12683421,164.77,164.75,1.88173252]
[1730632814129,0.12683421,164.77,164.74,6.2912131]
[1730632814440,0.22683421,164.77,164.74,6.2912131]
[1730632814731,0.1,164.75,164.74,6.2912131]
[1730632815436,35.7395,164.75,164.74,6.2912131]
[1730632815642,0.1,164.72,164.64,2.00516337]
[1730632815841,20.0,164.74,164.63,0.3062003]
[1730632815842,0.1,164.73,164.65,1.87967337]
[1730632816045,0.1,164.73,164.66,1.87967337]
[1730632816210,20.0,164.74,164.67,1.87967337]
[1730632816407,22.1615,164.75,164.68,1.87967337]
[1730632816625,22.1615,164.75,164.69,1.87967337]
[1730632816942,22.1615,164.75,164.7,1.87967337]
[1730632817238,22.1615,164.75,164.66,1.87967337]
[1730632817413,22.1615,164.75,164.67,1.87967337]
[1730632817612,22.1615,164.75,164.68,1.87967337]
[1730632817812,22.1615,164.75,164.69,1.87967337]
[1730632818018,22.1615,164.75,164.7,1.87967337]
[1730632818334,22.1615,164.75,164.66,1.87967337]
[1730632818537,22.1615,164.75,164.67,1.87967337]
[1730632818723,22.1615,164.75,164.68,1.87967337]
[1730632818927,22.1615,164.75,164.69,1.87967337]
[1730632819242,22.1615,164.75,164.66,1.87967337]
[1730632819438,22.1615,164.75,164.67,1.87967337]
[1730632819643,22.1615,164.75,164.68,1.87967337]
[1730632819957,22.1615,164.75,164.69,1.87967337]
[1730632820136,22.1615,164.75,164.66,1.87967337]
[1730632820337,22.0615,164.75,164.67,1.87967337]
[1730632820541,22.0615,164.75,164.68,1.87967337]
[1730632820742,22.0615,164.75,164.69,1.87967337]
[1730632821040,22.0615,164.75,164.67,24.027864]
[1730632821241,22.0615,164.75,164.68,1.87967337]
[1730632821447,22.0615,164.75,164.69,1.87967337]
[1730632821625,22.0615,164.75,164.68,1.87967337]
[1730632821829,22.0615,164.75,164.69,1.87967337]
[1730632822042,22.0615,164.75,164.68,1.87967337]
[1730632822619,15.6395,164.75,164.68,1.87967337]
[1730632822825,15.6395,164.75,164.69,1.87967337]
[1730632823029,15.6395,164.75,164.68,1.87485244]
[1730632824429,15.6395,164.75,164.67,2.00034244]
[1730632826245,15.6395,164.75,164.67,0.12549]
[1730632826428,15.6395,164.75,164.67,1.9994684]
[1730632827044,15.6395,164.75,164.67,1.8739784]
[1730632828047,15.7395,164.75,164.67,1.8739784]
[1730632828947,0.1,164.74,164.66,6.29407161]
[1730632829549,15.6395,164.75,164.66,6.29407161]
[1730632829771,0.1,164.74,164.66,6.29407161]
[1730632831139,0.13146215,164.67,164.66,6.29407161]
[1730632848068,6.29646215,164.67,164.66,6.29407161]
[1730632848272,0.2,164.65,164.63,0.3062003]
[1730632848471,0.1,164.64,164.63,0.3062003]
[1730632848690,15.0586,164.64,164.63,0.3062003]
[1730632849083,15.1586,164.64,164.63,0.3062003]
[1730632849561,35.0586,164.64,164.63,0.3062003]
[1730632849870,0.2,164.65,164.63,0.3062003]
[1730632849871,0.1,164.65,164.63,0.3062003]
[1730632850071,0.45695215,164.67,164.63,0.3062003]
[1730632850284,44.353354,164.64,164.63,0.3062003]
[1730632850992,0.1,164.6,164.54,0.3062003]
[1730632851161,0.1,164.61,164.54,0.3062003]
[1730632851861,0.1,164.62,164.54,0.3062003]
[1730632852080,0.1,164.61,164.54,0.3062003]
[1730632852262,0.32549,164.6,164.54,0.3062003]
[1730632852457,21.2236,164.59,164.54,0.3062003]
[1730632852762,21.3236,164.59,164.54,0.3062003]
[1730632854566,21.2236,164.59,164.54,0.3062003]
[1730632854779,21.3236,164.59,164.54,0.3062003]
[1730632857986,0.1,164.61,164.54,0.3062003]
[1730632858172,0.1,164.6,164.54,0.3062003]
[1730632860368,0.2,164.6,164.54,0.3062003]
[1730632860575,0.2,164.59,164.54,0.3062003]
[1730632860779,0.32549,164.59,164.54,0.3062003]
[1730632861095,0.32549,164.58,164.54,0.3062003]
[1730632862072,0.1,164.57,164.54,0.3062003]
[1730632862298,0.1,164.56,164.54,0.3062003]